bitfinex/quotes_SOLUSD_20251223
["timestamp","ask_amount","ask_price","bid_price","bid_amount"]
[1766505926961,14.74,123.71,123.67,7.71557449]
[1766505927167,15.42,123.71,123.68,7.71557449]
[1766505927370,0.68,123.7,123.68,7.71557449]
[1766505927590,0.68,123.7,123.67,7.71557449]
[1766505927771,15.79840003,123.72,123.65,8.69710421]
[1766505927772,0.68,123.75,123.69,7.71557449]
[1766505927981,8.08098586,123.75,123.67,0.61]
[1766505928194,0.68,123.73,123.66,35.58567197]
[1766505928489,0.68,123.73,123.68,8.08497201]
[1766505928691,0.68,123.73,123.66,35.58567197]
[1766505928692,0.68,123.73,123.66,8.08604073]
[1766505928980,0.68,123.72,123.69,7.71557449]
[1766505929568,0.68,123.72,123.68,8.08533206]
[1766505929777,0.68,123.72,123.7,7.71557449]
[1766505930176,0.68,123.71,123.68,7.71557449]
[1766505930477,0.68,123.71,123.69,7.71557449]
[1766505931064,0.68,123.71,123.68,7.71557449]
[1766505931272,0.68,123.71,123.69,7.71557449]
[1766505932065,0.68,123.71,123.66,8.08645055]
[1766505932376,0.68,123.71,123.68,7.71557449]
[1766505933059,0.68,123.71,123.65,22.84711972]
[1766505933259,0.68,123.71,123.67,7.71557449]
[1766505933464,0.68,123.71,123.65,22.84711972]
[1766505933465,0.68,123.71,123.68,7.71557449]
[1766505933989,0.68,123.68,123.61,8.69973081]
[1766505934179,0.68,123.67,123.63,7.71557449]
[1766505934570,0.68,123.67,123.64,7.71557449]
[1766505935690,30.64947114,123.7,123.65,7.71557449]
[1766505935691,18.52176517,123.7,123.65,7.71557449]
[1766505935987,0.68,123.7,123.67,7.71557449]
[1766505936382,0.68,123.7,123.64,0.61]
[1766505936383,0.68,123.7,123.64,8.69749918]
[1766505936578,0.68,123.69,123.66,7.71557449]
[1766505936982,0.68,123.69,123.63,20.22162905]
[1766505936983,0.68,123.69,123.65,7.71557449]
[1766505937491,0.68,123.69,123.64,7.71557449]
[1766505937492,0.72,123.68,123.64,7.71557449]
[1766505938796,0.72,123.67,123.64,7.71557449]
[1766505939495,0.72,123.67,123.62,8.08908817]
[1766505939695,0.72,123.67,123.64,7.71557449]
[1766505939898,8.08494661,123.69,123.65,7.71557449]
[1766505940083,0.72,123.69,123.67,7.71557449]
[1766505940285,0.72,123.69,123.64,0.61]
[1766505940477,0.72,123.69,123.66,7.71557449]
[1766505941386,0.72,123.69,123.67,7.71557449]
[1766505941587,0.72,123.7,123.67,7.71557449]
[1766505941975,0.72,123.74,123.69,7.71557449]
[1766505942297,0.72,123.74,123.66,22.84650852]
[1766505942505,0.72,123.73,123.66,23.45650852]
[1766505942672,0.72,123.73,123.7,7.71557449]
[1766505943074,0.72,123.72,123.67,8.69575711]
[1766505943389,0.72,123.72,123.69,7.71557449]
[1766505943588,0.72,123.74,123.71,7.71557449]
[1766505944286,0.72,123.74,123.69,8.08471448]
[1766505944483,0.72,123.74,123.72,7.71557449]
[1766505945406,8.08157595,123.74,123.68,8.69512889]
[1766505945608,8.80157595,123.74,123.71,7.71557449]
[1766505946100,0.72,123.74,123.71,7.71557449]
[1766505946305,0.72,123.74,123.72,7.71557449]
[1766505946507,0.72,123.74,123.68,8.69512889]
[1766505946882,0.72,123.73,123.7,7.71557449]
[1766505947307,0.72,123.73,123.71,7.71557449]
[1766505947708,19.23858298,123.75,123.72,7.71557449]
[1766505947919,33.27677469,123.78,123.74,7.71557449]
[1766505948089,0.72,123.77,123.71,0.61]
[1766505948289,0.72,123.77,123.74,7.71557449]
[1766505948603,0.72,123.77,123.71,0.61]
[1766505948801,0.72,123.77,123.73,7.71557449]
[1766505948981,61.1894731,123.78,123.71,0.61]
[1766505948982,8.08080808,123.75,123.71,7.71557449]
[1766505949180,0.72,123.74,123.7,7.71557449]
[1766505949399,0.72,123.74,123.67,8.08585231]
[1766505949600,0.72,123.72,123.68,7.71557449]
[1766505949911,0.72,123.72,123.66,0.61]
[1766505950124,0.72,123.72,123.67,7.71557449]
[1766505950407,0.72,123.72,123.68,7.71557449]
[1766505951008,8.80298824,123.72,123.68,7.71557449]
[1766505951198,0.72,123.71,123.68,7.71557449]
[1766505951796,0.72,123.71,123.67,7.71557449]
[1766505952821,0.72,123.7,123.66,7.71557449]
[1766505953315,0.72,123.69,123.66,7.71557449]
[1766505953921,0.72,123.69,123.62,8.69905992]
[1766505954113,0.72,123.69,123.64,7.71557449]
[1766505954417,0.72,123.69,123.6,8.70031605]
[1766505954418,8.43557449,123.67,123.6,8.70031605]
[1766505954732,10.43767296,123.69,123.58,0.80919242]
[1766505954733,0.72,123.65,123.58,22.85153193]
[1766505954938,0.72,123.65,123.56,0.61]
[1766505954939,7.71557449,123.64,123.56,0.61]
[1766505955140,7.71557449,123.64,123.54,0.2]
[1766505955141,8.08996035,123.61,123.57,7.71557449]
[1766505955440,8.08996035,123.61,123.54,8.90450925]
[1766505955441,0.72,123.6,123.54,8.90450925]
[1766505955640,0.72,123.6,123.56,7.71557449]
[1766505955851,0.72,123.57,123.54,0.2]
[1766505956137,0.72,123.56,123.52,7.71557449]
[1766505956306,0.72,123.58,123.5,8.09692208]
[1766505956508,0.72,123.56,123.51,0.2]
[1766505956704,0.72,123.56,123.53,7.71557449]
[1766505956924,0.72,123.56,123.51,0.2]
[1766505957121,0.72,123.56,123.53,7.71557449]
[1766505957439,0.72,123.56,123.51,0.2]
[1766505957612,8.09339662,123.56,123.51,0.2]
[1766505957812,0.72,123.55,123.51,0.2]
[1766505958110,0.72,123.55,123.51,4.97473971]
[1766505958325,0.72,123.55,123.51,0.2]
[1766505958510,0.72,123.55,123.51,4.97473971]
[1766505958710,0.72,123.55,123.53,4.77473971]
[1766505959112,0.72,123.55,123.51,0.2]
[1766505959334,0.72,123.55,123.52,4.77473971]
[1766505959529,0.72,123.57,123.54,4.77473971]
[1766505960121,0.72,123.57,123.51,8.90650199]
[1766505960330,0.72,123.61,123.56,5.38473971]
[1766505960639,0.72,123.61,123.58,4.77473971]
[1766505960827,0.72,123.61,123.55,10.43767296]
[1766505961013,0.72,123.61,123.56,4.77473971]
[1766505961014,0.72,123.6,123.56,4.77473971]
[1766505961345,0.72,123.57,123.52,14.76]
[1766505961548,0.72,123.57,123.55,4.77473971]
[1766505962044,0.72,123.57,123.53,4.77473971]
[1766505962653,5.49473971,123.57,123.51,0.2]
[1766505962940,4.77473971,123.55,123.51,0.2]
[1766505963141,0.72,123.54,123.51,0.2]
[1766505963341,0.72,123.53,123.51,0.2]
[1766505963860,8.81531858,123.53,123.51,0.2]
[1766505964070,0.72,123.53,123.51,0.2]
[1766505964238,0.72,123.53,123.51,4.97473971]
[1766505964541,8.09439919,123.55,123.51,4.97473971]
[1766505964740,25.19767296,123.57,123.54,4.77473971]
[1766505964942,0.72,123.58,123.52,0.61]
[1766505965435,8.81207618,123.58,123.52,0.61]
[1766505965635,0.72,123.58,123.53,8.09519735]
[1766505965838,8.81221373,123.58,123.55,4.77473971]
[1766505966036,0.72,123.57,123.54,4.77473971]
[1766505966238,15.5,123.6,123.56,4.77473971]
[1766505966437,0.72,123.59,123.56,4.77473971]
[1766505967064,0.72,123.59,123.57,4.77473971]
[1766505967250,0.72,123.59,123.53,8.7047543]
[1766505967251,0.66,123.61,123.58,4.77473971]
[1766505967444,0.66,123.61,123.55,13.47840732]
[1766505967445,0.66,123.61,123.59,4.77473971]
[1766505967635,8.0887807,123.63,123.57,8.09213454]
[1766505967833,0.66,123.62,123.59,4.77473971]
[1766505968268,0.66,123.62,123.56,8.70299949]
[1766505968437,0.66,123.62,123.58,4.77473971]
[1766505968858,0.66,123.61,123.54,19.1420412]
[1766505969058,0.66,123.61,123.58,4.77473971]
[1766505969259,0.66,123.61,123.59,4.77473971]
[1766505969462,8.08939281,123.62,123.56,8.70304913]
[1766505969645,8.74939281,123.62,123.59,4.77473971]
[1766505969847,0.66,123.61,123.58,4.77473971]
[1766505972145,0.66,123.63,123.6,4.77473971]
[1766505972362,14.78,123.64,123.61,4.77473971]
[1766505972563,0.66,123.65,123.63,4.77473971]
[1766505972774,8.08692841,123.66,123.63,4.77473971]
[1766505972775,0.66,123.66,123.63,4.77473971]
[1766505973367,0.66,123.66,123.6,0.61]
[1766505973558,0.66,123.66,123.62,4.77473971]
[1766505973757,15.44,123.68,123.61,0.61]
[1766505973952,15.44,123.68,123.63,4.77473971]
[1766505973953,0.66,123.67,123.63,4.77473971]
[1766505974344,0.66,123.67,123.61,14.78]
[1766505974657,0.66,123.67,123.64,4.77473971]
[1766505974853,14.78,123.68,123.64,4.77473971]
[1766505975170,23.52561668,123.68,123.63,4.77473971]
[1766505975371,23.52561668,123.68,123.61,15.39]
[1766505975372,0.26319572,123.67,123.61,15.39]
[1766505975577,0.26319572,123.67,123.62,4.77473971]
[1766505975763,8.34959286,123.67,123.62,4.77473971]
[1766505975967,22.86578083,123.68,123.64,4.77473971]
[1766505976368,22.86547857,123.68,123.64,4.77473971]
[1766505976563,14.78,123.68,123.64,4.77473971]
[1766505977150,22.86552734,123.68,123.63,5.47473971]
[1766505977478,11.09767296,123.7,123.67,4.77473971]
[1766505977679,22.86299406,123.72,123.68,4.77473971]
[1766505977973,22.86299406,123.72,123.65,10.43767296]
[1766505977974,0.66,123.71,123.65,10.43767296]
[1766505978273,0.66,123.7,123.62,4.77473971]
[1766505978574,43.0699129,123.72,123.65,4.77473971]
[1766505978780,0.66,123.7,123.65,0.7]
[1766505978981,0.66,123.7,123.65,5.47473971]
[1766505979185,0.66,123.69,123.64,4.77473971]
[1766505979385,0.66,123.67,123.62,4.77473971]
[1766505979769,18.52362947,123.68,123.64,4.77473971]
[1766505980384,19.18362947,123.68,123.64,4.77473971]
[1766505980886,19.18362947,123.68,123.63,5.47473971]
[1766505981075,0.66,123.67,123.63,4.77473971]
[1766505981267,0.66,123.67,123.64,4.77473971]
[1766505981467,14.76,123.69,123.64,4.77473971]
[1766505981468,25.19767296,123.69,123.66,4.77473971]
[1766505981685,22.84484273,123.69,123.62,8.0890506]
[1766505981878,22.84484273,123.69,123.64,4.77473971]
[1766505982080,23.50484273,123.69,123.64,4.77473971]
[1766505982468,23.50484273,123.69,123.65,4.77473971]
[1766505982666,8.74352559,123.71,123.68,4.77473971]
[1766505982866,0.66,123.7,123.65,0.7]
[1766505983085,0.66,123.7,123.63,0.7]
[1766505983286,0.66,123.69,123.65,4.77473971]
[1766505983483,0.66,123.69,123.64,0.7]
[1766505983677,8.74352559,123.71,123.68,4.77473971]
[1766505984388,0.66,123.7,123.66,4.77473971]
[1766505984768,8.08352559,123.71,123.65,8.08711743]
[1766505984979,0.66,123.71,123.69,4.77473971]
[1766505985186,0.66,123.71,123.68,4.77473971]
[1766505985485,8.7435527,123.71,123.68,4.77473971]
[1766505985691,8.7435527,123.71,123.67,4.77473971]
[1766505987494,18.52070544,123.72,123.68,4.77473971]
[1766505987667,19.18070544,123.72,123.67,0.7]
[1766505987875,18.52070544,123.72,123.67,0.7]
[1766505988078,0.66,123.71,123.67,4.77473971]
[1766505988900,0.66,123.71,123.64,8.08771337]
[1766505989212,0.66,123.71,123.66,4.77473971]
[1766505990274,8.7438201,123.71,123.68,4.77473971]
[1766505990491,0.66,123.71,123.68,4.77473971]
[1766505990694,8.74353949,123.71,123.67,5.47473971]
[1766505990877,0.66,123.71,123.68,4.77473971]
[1766505991597,18.52060483,123.72,123.68,4.77473971]
[1766505991907,19.18060483,123.72,123.68,4.77473971]
[1766505993592,0.66,123.74,123.7,4.77473971]
[1766505993779,0.66,123.74,123.71,4.77473971]
[1766505993976,0.66,123.74,123.7,4.77473971]
[1766505994675,0.66,123.74,123.68,8.08515063]
[1766505994888,0.66,123.72,123.67,4.77473971]
[1766505995086,0.66,123.72,123.68,4.77473971]
[1766505995378,0.66,123.72,123.67,5.48473971]
[1766505995877,0.66,123.72,123.65,18.52475051]
[1766505995878,5.43473971,123.71,123.65,4.77473971]
[1766505996075,0.66,123.7,123.65,5.48473971]
[1766505996689,0.66,123.7,123.66,4.77473971]
[1766505996883,8.08395513,123.71,123.68,4.77473971]
[1766505997103,8.77395513,123.71,123.66,4.77473971]
[1766505997483,8.77395513,123.71,123.65,5.44473971]
[1766505997484,0.69,123.7,123.65,5.44473971]
[1766505997690,0.69,123.7,123.65,0.67]
[1766505997907,0.69,123.7,123.65,5.44473971]
[1766505998391,0.69,123.7,123.66,4.77473971]
[1766505999100,8.08472794,123.69,123.66,4.77473971]
[1766506000512,8.77415918,123.7,123.66,4.77473971]
[1766506000702,8.77415918,123.7,123.65,0.67]
[1766506000902,8.77415918,123.7,123.66,4.77473971]
[1766506001206,8.77415918,123.7,123.65,5.44473971]
[1766506001505,8.77415918,123.7,123.66,4.77473971]
[1766506004307,20.20855225,123.71,123.68,5.44473971]
[1766506004308,8.08372903,123.71,123.68,5.44473971]
[1766506004799,19.21063904,123.72,123.68,4.77473971]
[1766506005005,18.52063904,123.72,123.69,4.77473971]
[1766506005202,53.48755788,123.72,123.65,0.67]
[1766506005405,0.69,123.7,123.65,5.44473971]
[1766506005607,0.69,123.7,123.65,0.67]
[1766506005802,0.69,123.7,123.65,5.44473971]
[1766506006202,8.774633,123.7,123.65,5.44473971]
[1766506006408,8.774633,123.7,123.66,4.77473971]
[1766506006611,8.774633,123.7,123.66,5.44473971]
[1766506007715,8.08350363,123.71,123.67,4.77473971]
[1766506007903,8.08350363,123.71,123.67,5.44473971]
[1766506008210,8.77350363,123.71,123.65,8.08709676]
[1766506008400,8.77350363,123.71,123.67,4.77473971]
[1766506009399,0.69,123.7,123.65,4.77473971]
[1766506009713,0.69,123.7,123.66,4.77473971]
[1766506009909,0.69,123.7,123.66,5.44473971]
[1766506010417,0.69,123.7,123.67,4.77473971]
[1766506010620,19.21068841,123.72,123.67,5.44473971]
[1766506010816,0.69,123.71,123.67,5.44473971]
[1766506010999,18.52068841,123.72,123.68,5.44473971]
[1766506011205,0.69,123.75,123.71,4.77473971]
[1766506011922,8.77080808,123.75,123.71,4.77473971]
[1766506013506,8.77080808,123.75,123.7,0.67]
[1766506013701,8.77080808,123.75,123.69,8.08453509]
[1766506013702,0.69,123.77,123.74,4.77473971]
[1766506013895,5.46473971,123.79,123.71,18.52107446]
[1766506014103,0.69,123.78,123.72,5.44473971]
[1766506014310,0.69,123.78,123.73,4.77473971]
[1766506014718,0.69,123.78,123.72,0.67]
[1766506014918,0.69,123.78,123.72,5.44473971]
[1766506015216,0.69,123.78,123.74,4.77473971]
[1766506015419,19.20634779,123.79,123.74,0.67]
[1766506015716,19.20634779,123.79,123.75,4.77473971]
[1766506016302,8.76867483,123.79,123.75,4.77473971]
[1766506016500,0.1,123.81,123.78,4.77473971]
[1766506016699,0.1,123.85,123.8,4.95473971]
[1766506016899,0.1,123.85,123.83,4.77473971]
[1766506017314,0.1,123.85,123.8,0.18]
[1766506017315,0.1,123.85,123.81,4.77473971]
[1766506017623,0.79,123.85,123.81,4.77473971]
[1766506017810,0.69,123.84,123.79,10.43767296]
[1766506018007,0.69,123.84,123.81,7.72086823]
[1766506018504,0.1,123.85,123.8,8.2573111]
[1766506018824,0.79,123.85,123.82,7.72086823]
[1766506020017,15.55,123.85,123.82,7.72086823]
[1766506020724,0.1,123.9,123.84,7.80086823]
[1766506020915,0.79,123.9,123.88,7.72086823]
[1766506021115,0.1,123.9,123.88,7.72086823]
[1766506021422,0.1,123.9,123.87,7.72086823]
[1766506021623,0.79,123.9,123.86,7.72086823]
[1766506021826,0.79,123.9,123.83,10.51767296]
[1766506022008,0.79,123.9,123.86,7.72086823]
[1766506022206,0.1,123.9,123.89,7.72086823]
[1766506022405,0.1,123.9,123.88,7.72086823]
[1766506022726,0.1,123.9,123.89,7.72086823]
[1766506023098,0.1,123.9,123.84,15.56749354]
[1766506023099,10.53767296,123.9,123.84,0.80749354]
[1766506023305,0.69,123.89,123.85,7.72086823]
[1766506023500,0.1,123.9,123.87,7.72086823]
[1766506023701,0.1,123.9,123.88,7.72086823]
[1766506024413,0.1,123.9,123.86,8.07311483]
[1766506024607,0.1,123.9,123.88,7.72086823]
[1766506024809,0.69,123.89,123.83,8.60842697]
[1766506025105,0.69,123.89,123.86,7.72086823]
[1766506026108,0.69,123.89,123.87,7.72086823]
[1766506026348,0.69,123.89,123.86,7.72086823]
[1766506026647,0.79,123.9,123.86,7.72086823]
[1766506026844,0.79,123.9,123.82,27.93331214]
[1766506026845,0.79,123.9,123.85,7.72086823]
[1766506027134,0.1,123.9,123.87,7.72086823]
[1766506027351,0.66,123.93,123.89,7.72086823]
[1766506027504,8.72915811,123.93,123.9,7.72086823]
[1766506027845,0.66,123.93,123.9,7.72086823]
[1766506028446,8.72910825,123.93,123.9,7.72086823]
[1766506028655,8.06776926,123.95,123.91,7.72086823]
[1766506028812,0.66,123.94,123.91,7.72086823]
[1766506029234,8.72844782,123.94,123.86,34.92332199]
[1766506029472,8.72844782,123.94,123.91,7.72086823]
[1766506030032,0.66,123.91,123.81,9.96855924]
[1766506030263,7.72086823,123.9,123.81,14.74]
[1766506030575,7.72086823,123.9,123.76,7.72086823]
[1766506030576,0.66,123.87,123.83,7.72086823]
[1766506030861,0.66,123.87,123.78,20.19624047]
[1766506030862,0.66,123.87,123.82,7.72086823]
[1766506031064,0.66,123.86,123.83,7.72086823]
[1766506031941,0.66,123.86,123.82,7.72086823]
[1766506032137,0.66,123.86,123.83,7.72086823]
[1766506032345,0.66,123.88,123.84,7.72086823]
[1766506032655,0.66,123.88,123.82,8.07616047]
[1766506032848,0.66,123.88,123.85,7.72086823]
[1766506033163,0.66,123.88,123.82,8.07616047]
[1766506033358,0.66,123.88,123.85,7.72086823]
[1766506033552,0.66,123.88,123.82,8.07616047]
[1766506033553,33.24916893,123.9,123.86,7.72086823]
[1766506033756,0.66,123.89,123.86,7.72086823]
[1766506034067,0.66,123.88,123.82,8.07616047]
[1766506034569,0.66,123.88,123.84,7.72086823]
[1766506034938,53.42673148,123.9,123.85,7.72086823]
[1766506034939,45.35523551,123.9,123.85,7.72086823]
[1766506035135,0.66,123.89,123.86,7.72086823]
[1766506035548,0.66,123.89,123.84,8.0748441]
[1766506035865,0.66,123.89,123.86,7.72086823]
[1766506036063,0.66,123.92,123.88,7.72086823]
[1766506036251,0.66,123.92,123.89,7.72086823]
[1766506036754,0.66,123.91,123.87,7.72086823]
[1766506036953,8.73102502,123.9,123.86,7.72086823]
[1766506037153,8.07102502,123.9,123.86,7.72086823]
[1766506037358,8.73102502,123.9,123.86,7.72086823]
[1766506037657,8.73102502,123.9,123.84,18.51206616]
[1766506037658,8.07064513,123.91,123.87,7.72086823]
[1766506037850,15.4,123.92,123.86,8.07355385]
[1766506038053,15.4,123.92,123.88,7.72086823]
[1766506038245,0.66,123.92,123.89,7.72086823]
[1766506038665,22.80868967,123.94,123.9,7.72086823]
[1766506038875,23.46868967,123.94,123.86,28.25763264]
[1766506039058,22.80868967,123.94,123.9,7.72086823]
[1766506039266,0.66,123.93,123.9,7.72086823]
[1766506039970,0.66,123.93,123.89,7.72086823]
[1766506040164,0.66,123.93,123.88,7.72086823]
[1766506040360,0.66,123.93,123.87,14.74]
[1766506040667,0.66,123.92,123.87,7.72086823]
[1766506040969,42.97974017,123.94,123.85,7.72086823]
[1766506040970,0.66,123.9,123.85,7.72086823]
[1766506041142,8.73148306,123.9,123.85,7.72086823]
[1766506041345,8.73148306,123.9,123.83,22.81531865]
[1766506041571,0.66,123.89,123.85,7.72086823]
[1766506041944,0.66,123.89,123.86,7.72086823]
[1766506042350,0.66,123.89,123.85,7.72086823]
[1766506042569,8.07064244,123.91,123.87,7.72086823]
[1766506042743,0.66,123.9,123.86,7.72086823]
[1766506043350,8.73106013,123.9,123.86,7.72086823]
[1766506043662,0.66,123.9,123.87,7.72086823]
[1766506044082,0.66,123.92,123.88,7.72086823]
[1766506044249,0.66,123.92,123.89,7.72086823]
[1766506044451,0.66,123.92,123.86,8.07359724]
[1766506044656,0.66,123.92,123.88,7.72086823]
[1766506044879,0.66,123.92,123.89,7.72086823]
[1766506045263,0.66,123.92,123.9,7.72086823]
[1766506045652,0.66,123.92,123.89,7.72086823]
[1766506046576,0.66,123.92,123.87,22.81251621]
[1766506046879,0.66,123.92,123.88,7.72086823]
[1766506046880,0.66,123.91,123.88,7.72086823]
[1766506047279,0.66,123.91,123.86,22.81341638]
[1766506047481,0.66,123.91,123.88,7.72086823]
[1766506047978,8.72907124,123.93,123.89,7.72086823]
[1766506048560,0.66,123.92,123.89,7.72086823]
[1766506048763,0.66,123.89,123.83,0.80755874]
[1766506048988,10.43767296,123.85,123.76,8.07999163]
[1766506049185,9.27873406,123.84,123.78,8.41086823]
[1766506049382,9.27873406,123.84,123.8,0.69]
[1766506049383,1.55786583,123.84,123.8,0.69]
[1766506049684,11.09767296,123.86,123.81,7.72086823]
[1766506049865,10.43767296,123.84,123.8,0.69]
[1766506050068,11.33553879,123.83,123.78,0.69]
[1766506050267,10.43767296,123.83,123.77,8.76899988]
[1766506050460,11.09767296,123.83,123.78,8.41086823]
[1766506050859,11.09767296,123.83,123.76,14.74]
[1766506050860,8.38086823,123.82,123.76,0.69]
[1766506051085,0.66,123.81,123.76,8.41086823]
[1766506051589,0.66,123.81,123.77,7.72086823]
[1766506051783,0.66,123.81,123.76,0.69]
[1766506051987,20.18839008,123.84,123.8,8.41086823]
[1766506051988,18.51273004,123.84,123.8,8.41086823]
[1766506052281,19.17273004,123.84,123.8,7.72086823]
[1766506052476,8.61873406,123.83,123.75,14.74]
[1766506052661,0.66,123.82,123.77,7.72086823]
[1766506052859,0.66,123.82,123.77,8.41086823]
[1766506053683,0.69,123.81,123.76,7.72086823]
[1766506053882,8.76754442,123.8,123.75,8.42086823]
[1766506054186,0.69,123.8,123.77,7.72086823]
[1766506054478,0.69,123.8,123.74,8.08127515]
[1766506054479,10.43767296,123.81,123.79,7.72086823]
[1766506054872,10.43767296,123.81,123.78,7.72086823]
[1766506055072,10.43767296,123.81,123.76,0.7]
[1766506055388,10.43767296,123.81,123.77,7.72086823]
[1766506056374,8.97353684,123.83,123.8,7.72086823]
[1766506056687,88.80070895,123.95,123.82,7.72086823]
[1766506056688,0.89786583,123.86,123.82,7.72086823]
[1766506056887,0.7,123.87,123.81,0.69]
[1766506057084,10.43767296,123.85,123.82,7.72086823]
[1766506057276,8.77382281,123.86,123.81,0.69]
[1766506057464,0.7,123.85,123.81,7.72086823]
[1766506058085,0.7,123.85,123.79,0.69]
[1766506058086,8.77478751,123.85,123.79,0.69]
[1766506058387,8.77478751,123.85,123.76,0.69]
[1766506058388,0.7,123.82,123.76,0.69]
[1766506058570,14.74,123.84,123.78,0.69]
[1766506058773,0.7,123.83,123.8,7.72086823]
[1766506059989,14.74,123.84,123.82,7.72086823]
[1766506060381,14.74,123.84,123.79,0.69]
[1766506060382,11.13767296,123.86,123.83,7.72086823]
[1766506060690,6.1281,123.92,123.83,7.72086823]
[1766506060691,14.74,123.9,123.85,8.41086823]
[1766506060899,23.51106689,123.9,123.87,7.72086823]
[1766506061074,23.51106689,123.9,123.85,0.69]
[1766506061277,15.44,123.9,123.87,7.72086823]
[1766506061597,10.43767296,123.91,123.88,7.72086823]
[1766506061971,8.76986453,123.92,123.86,0.69]
[1766506062166,16.49073276,123.92,123.87,7.72086823]
[1766506062372,26.92840572,123.92,123.87,7.72086823]
[1766506062592,26.22840572,123.92,123.86,0.69]
[1766506062808,0.7,123.91,123.87,7.72086823]
[1766506062996,26.22840572,123.92,123.87,8.41086823]
[1766506063191,26.22840572,123.92,123.86,7.72086823]
[1766506063192,8.42086823,123.91,123.86,7.72086823]
[1766506063399,0.7,123.91,123.86,7.72086823]
[1766506063582,8.42086823,123.91,123.86,8.41086823]
[1766506063905,0.7,123.91,123.86,8.76362091]
[1766506064084,0.7,123.91,123.86,8.41086823]
[1766506064289,8.07102502,123.9,123.86,8.41086823]
[1766506064593,0.7,123.88,123.82,23.50609126]
[1766506064778,0.7,123.88,123.84,7.72086823]
[1766506064974,8.61873406,123.89,123.83,8.07522292]
[1766506065286,31.23189325,123.9,123.85,7.72086823]
[1766506065470,30.53189325,123.9,123.84,0.69]
[1766506065677,8.42086823,123.89,123.84,8.41086823]
[1766506065875,8.42086823,123.89,123.84,0.69]
[1766506066076,8.42086823,123.89,123.84,8.41086823]
[1766506066380,8.77213114,123.89,123.85,7.72086823]
[1766506066777,16.49299937,123.89,123.84,8.41086823]
[1766506067179,8.77213114,123.89,123.84,8.41086823]
[1766506067378,8.77213114,123.89,123.85,7.72086823]
[1766506067577,16.49299937,123.89,123.84,8.41086823]
[1766506067877,7.72086823,123.88,123.82,15.43]
[1766506068078,8.42086823,123.87,123.82,23.15086823]
[1766506068284,8.42086823,123.87,123.82,0.69]
[1766506068606,8.42086823,123.87,123.83,7.72086823]
[1766506068607,8.77320208,123.87,123.83,7.72086823]
[1766506068897,15.79407031,123.87,123.82,7.72086823]
[1766506069203,0.7,123.86,123.82,7.72086823]
[1766506069800,0.7,123.83,123.78,0.69]
[1766506070103,0.7,123.85,123.81,7.72086823]
[1766506070908,0.7,123.85,123.77,34.93790697]
[1766506070909,0.7,123.83,123.78,0.69]
[1766506071215,7.72086823,123.82,123.78,8.41086823]
[1766506071506,0.89786583,123.83,123.8,7.72086823]
[1766506071706,15.44,123.84,123.8,7.72086823]
[1766506072005,22.46086823,123.84,123.79,8.41086823]
[1766506072207,0.7,123.83,123.79,8.41086823]
[1766506073102,8.776097,123.83,123.79,7.72086823]
[1766506073293,8.776097,123.83,123.77,8.76941386]
[1766506073497,8.776097,123.83,123.79,7.72086823]
[1766506074415,8.776097,123.83,123.77,8.76941386]
[1766506074594,8.776097,123.83,123.79,7.72086823]
[1766506074996,0.7,123.85,123.81,7.72086823]
[1766506075190,0.7,123.85,123.82,7.72086823]
[1766506075411,0.7,123.85,123.8,0.69]
[1766506075714,0.7,123.85,123.82,7.72086823]
[1766506075908,0.7,123.85,123.8,0.69]
[1766506076115,26.07553879,123.87,123.79,28.27363177]
[1766506076311,26.07553879,123.87,123.84,7.72086823]
[1766506076312,14.74,123.87,123.84,7.72086823]
[1766506076510,8.7717994,123.89,123.86,7.72086823]
[1766506077415,0.7,123.89,123.86,7.72086823]
[1766506078022,13.5178449,123.91,123.85,8.76409887]
[1766506078211,5.44722883,123.89,123.85,0.69]